bitfinex/quotes_BTCUSD_20240617
["timestamp","ask_amount","ask_price","bid_price","bid_amount"]
[1718665845487,2.98753697,66679.0,66678.0,0.009405]
[1718665846160,2.84323097,66679.0,66678.0,0.009405]
[1718665846390,2.66688997,66679.0,66678.0,0.009405]
[1718665846604,3.13392537,66679.0,66678.0,0.009405]
[1718665846822,3.31676737,66679.0,66678.0,0.009405]
[1718665847255,3.24947625,66679.0,66678.0,0.009405]
[1718665847665,2.78244085,66679.0,66678.0,0.009405]
[1718665848841,2.93244085,66679.0,66678.0,0.009405]
[1718665849053,2.93244085,66679.0,66666.0,0.1373]
[1718665849054,1.219853,66676.0,66666.0,0.1373]
[1718665849297,0.269983,66674.0,66666.0,0.1373]
[1718665849518,2.08728499,66674.0,66666.0,0.1373]
[1718665849729,2.38725199,66674.0,66666.0,0.1373]
[1718665849964,2.48399499,66674.0,66666.0,0.1373]
[1718665850185,2.48399499,66674.0,66672.0,0.1373]
[1718665850186,2.35845199,66674.0,66672.0,0.1373]
[1718665850390,2.40328104,66674.0,66672.0,0.1373]
[1718665850798,2.40328104,66674.0,66660.0,0.009405]
[1718665850799,3.62948604,66674.0,66668.0,0.0809]
[1718665851003,3.99652144,66674.0,66668.0,0.0809]
[1718665851227,3.98049239,66674.0,66668.0,0.0809]
[1718665851406,4.09651265,66674.0,66668.0,0.0809]
[1718665852454,4.10451265,66674.0,66668.0,0.0809]
[1718665852654,4.26622521,66674.0,66668.0,0.0809]
[1718665852910,4.25822521,66674.0,66668.0,0.0809]
[1718665853059,4.24922521,66674.0,66668.0,0.0809]
[1718665853268,4.21440495,66674.0,66668.0,0.0809]
[1718665853473,4.26440495,66674.0,66668.0,0.0809]
[1718665853671,4.26440495,66674.0,66666.0,0.0616]
[1718665853672,0.319998,66667.0,66666.0,0.0616]
[1718665853893,1.38787529,66667.0,66666.0,0.08382734]
[1718665854101,1.38787529,66667.0,66666.0,0.0616]
[1718665854102,2.10510029,66667.0,66666.0,0.0616]
[1718665854323,2.70509629,66667.0,66666.0,0.0616]
[1718665855244,2.49995629,66667.0,66666.0,0.0616]
[1718665855454,2.44158629,66667.0,66666.0,0.0616]
[1718665855601,2.44458629,66667.0,66666.0,0.0616]
[1718665855972,2.44403573,66667.0,66666.0,0.0616]
[1718665857542,2.54403573,66667.0,66666.0,0.0616]
[1718665857748,2.49123811,66667.0,66666.0,0.0616]
[1718665857999,2.54378039,66667.0,66666.0,0.0616]
[1718665858422,2.44378039,66667.0,66666.0,0.0616]
[1718665859481,2.35674439,66667.0,66666.0,0.0616]
[1718665859695,2.28789539,66667.0,66666.0,0.0616]
[1718665860131,0.170008,66663.0,66662.0,0.0655]
[1718665860379,1.15785209,66663.0,66662.0,0.0655]
[1718665860583,2.05790009,66663.0,66662.0,0.0655]
[1718665860806,2.35790009,66663.0,66662.0,0.0655]
[1718665861653,2.75791609,66663.0,66662.0,0.0655]
[1718665862081,2.91062865,66663.0,66662.0,0.0655]
[1718665862443,2.91062865,66663.0,66661.0,0.0828]
[1718665862444,1.820115,66662.0,66661.0,0.0828]
[1718665862652,2.80377849,66662.0,66661.0,0.07743343]
[1718665862999,2.90377849,66662.0,66661.0,0.01617344]
[1718665863208,2.98925312,66662.0,66661.0,0.01617344]
[1718665863419,2.21086079,66662.0,66661.0,0.01617344]
[1718665863634,3.28486695,66662.0,66661.0,0.01617344]
[1718665863853,4.36935239,66662.0,66661.0,0.01617344]
[1718665864027,1.820137,66661.0,66660.0,0.009405]
[1718665864250,2.59356823,66661.0,66660.0,0.009405]
[1718665864448,3.71120039,66661.0,66660.0,0.009405]
[1718665864999,1.770236,66657.0,66656.0,0.009405]
[1718665865205,0.470085,66654.0,66653.0,0.0665]
[1718665865464,1.84672716,66654.0,66653.0,0.0665]
[1718665865653,2.8689116,66654.0,66653.0,0.0665]
[1718665865852,2.89242558,66654.0,66653.0,0.0665]
[1718665866061,2.6777964,66654.0,66653.0,0.0665]
[1718665866260,2.4671544,66654.0,66653.0,0.0665]
[1718665866645,2.6767394,66654.0,66653.0,0.0665]
[1718665866845,2.60531158,66654.0,66653.0,0.0665]
[1718665867754,2.53411158,66654.0,66653.0,0.0665]
[1718665867990,2.60779858,66654.0,66653.0,0.0665]
[1718665868408,2.66660092,66654.0,66653.0,0.0665]
[1718665868723,2.68060092,66654.0,66653.0,0.0665]
[1718665870829,0.02,66649.0,66648.0,0.0658]
[1718665871071,0.02,66649.0,66648.0,0.1433]
[1718665871072,0.70589962,66649.0,66648.0,0.1433]
[1718665871272,1.17365612,66649.0,66648.0,0.1433]
[1718665871492,1.47373512,66649.0,66648.0,0.1433]
[1718665872217,1.48373512,66649.0,66648.0,0.1433]
[1718665872680,1.48236975,66649.0,66648.0,0.1433]
[1718665873066,1.49136975,66649.0,66648.0,0.1433]
[1718665873854,1.730462,66648.0,66643.0,0.1433]
[1718665874057,1.730462,66648.0,66635.0,0.009405]
[1718665874058,0.450172,66641.0,66640.0,0.0621]
[1718665874266,0.67299521,66641.0,66640.0,0.0621]
[1718665874469,0.97299521,66641.0,66640.0,0.08436945]
[1718665874675,1.80214021,66641.0,66640.0,0.0621]
[1718665874893,1.87334021,66641.0,66640.0,0.0621]
[1718665875293,2.32618409,66641.0,66640.0,0.0621]
[1718665875918,2.32565973,66641.0,66640.0,0.0621]
[1718665876063,0.450193,66638.0,66637.0,0.0653]
[1718665876265,1.12490343,66638.0,66637.0,0.0653]
[1718665876492,1.42503243,66638.0,66637.0,0.0653]
[1718665876688,1.72516143,66638.0,66637.0,0.0653]
[1718665877663,1.73416143,66638.0,66637.0,0.0653]
[1718665878645,1.73350125,66638.0,66637.0,0.0653]
[1718665878856,1.74350125,66638.0,66637.0,0.0653]
[1718665879248,1.350621,66636.0,66635.0,0.009405]
[1718665879451,1.65334225,66636.0,66635.0,0.009405]
[1718665880895,1.73054225,66636.0,66635.0,0.151005]
[1718665881440,1.65934225,66636.0,66635.0,0.151005]
[1718665881653,1.73054225,66636.0,66635.0,0.151005]
[1718665882259,1.35920425,66636.0,66635.0,0.151005]
[1718665882410,0.264069,66636.0,66635.0,0.151005]
[1718665882617,0.264069,66636.0,66635.0,0.171005]
[1718665882818,0.264069,66636.0,66635.0,0.19337872]
[1718665883784,0.456207,66636.0,66635.0,0.19337872]
[1718665883989,0.450207,66636.0,66635.0,0.19337872]
[1718665884194,0.757345,66636.0,66635.0,0.171005]
[1718665884341,0.757345,66636.0,66635.0,0.151005]
[1718665884710,0.857345,66636.0,66635.0,0.151005]
[1718665885527,0.850345,66636.0,66635.0,0.151005]
[1718665885930,0.860345,66636.0,66635.0,0.151005]
[1718665886604,0.855345,66636.0,66635.0,0.151005]
[1718665886778,0.860345,66636.0,66635.0,0.171005]
[1718665887190,0.860345,66636.0,66635.0,0.151005]
[1718665887525,0.855345,66636.0,66635.0,0.151005]
[1718665887735,0.855345,66636.0,66635.0,0.171005]
[1718665887994,0.859345,66636.0,66635.0,0.171005]
[1718665888404,0.859345,66636.0,66635.0,0.151005]
[1718665888936,0.90876935,66636.0,66635.0,0.151005]
[1718665889449,0.90876935,66636.0,66635.0,0.009405]
[1718665889450,1.20890735,66636.0,66635.0,0.009405]
[1718665890914,1.60681663,66636.0,66635.0,0.009405]
[1718665891113,1.37787863,66636.0,66635.0,0.009405]
[1718665891401,1.68944814,66636.0,66635.0,0.009405]
[1718665891750,1.74440574,66636.0,66635.0,0.009405]
[1718665892393,1.81100574,66636.0,66635.0,0.009405]
[1718665892572,1.05064,66626.0,66625.0,0.009405]
[1718665892775,2.03619204,66626.0,66625.0,0.009405]
[1718665892978,2.33619204,66626.0,66625.0,0.009405]
[1718665894354,3.05966792,66626.0,66625.0,0.009405]
[1718665895168,3.03541492,66626.0,66625.0,0.009405]
[1718665895379,2.95617381,66626.0,66625.0,0.009405]
[1718665895581,2.85073393,66626.0,66625.0,0.009405]
[1718665895819,3.28907981,66626.0,66625.0,0.009405]
[1718665895946,2.86073384,66626.0,66625.0,0.009405]
[1718665896449,2.41305084,66626.0,66625.0,0.009405]
[1718665896650,2.40305084,66626.0,66625.0,0.009405]
[1718665896851,2.63458488,66626.0,66625.0,0.009405]
[1718665897253,2.42646188,66626.0,66625.0,0.009405]
[1718665897680,2.12627888,66626.0,66625.0,0.009405]
[1718665897880,2.04926784,66626.0,66625.0,0.009405]
[1718665898077,1.97806784,66626.0,66625.0,0.009405]
[1718665898660,1.98906784,66626.0,66625.0,0.009405]
[1718665899119,1.96506784,66626.0,66625.0,0.009405]
[1718665899316,1.67788484,66626.0,66625.0,0.070705]
[1718665899569,1.69188484,66626.0,66625.0,0.090705]
[1718665899769,1.67888484,66626.0,66625.0,0.090705]
[1718665899974,1.52615596,66626.0,66625.0,0.090705]
[1718665900172,1.22597296,66626.0,66625.0,0.090705]
[1718665900380,0.92578996,66626.0,66625.0,0.090705]
[1718665900579,0.92786465,66626.0,66625.0,0.090705]
[1718665900805,0.87610681,66626.0,66625.0,0.11310052]
[1718665901014,1.47647281,66626.0,66625.0,0.11289491]
[1718665901198,1.52823059,66626.0,66625.0,0.11289491]
[1718665901411,1.52823059,66626.0,66625.0,0.09049939]
[1718665901561,1.54792537,66626.0,66625.0,0.07049939]
[1718665901966,1.56105969,66626.0,66625.0,0.09049939]
[1718665902175,1.54705969,66626.0,66625.0,0.09049939]
[1718665902388,1.53405969,66626.0,66625.0,0.09049939]
[1718665902580,1.55705969,66626.0,66625.0,0.09049939]
[1718665903239,0.63212418,66626.0,66625.0,0.09049939]
[1718665903453,1.24389394,66626.0,66625.0,0.07049939]
[1718665903661,1.55407694,66626.0,66625.0,0.11291166]
[1718665903864,1.55407694,66626.0,66625.0,0.09049939]
[1718665906244,1.55407694,66626.0,66625.0,0.00919939]
[1718665906245,1.85951838,66626.0,66625.0,0.00919939]
[1718665906466,2.53108438,66626.0,66625.0,0.00919939]
[1718665907564,2.45988438,66626.0,66625.0,0.00919939]
[1718665907779,2.30717182,66626.0,66625.0,0.00919939]
[1718665908635,2.29717182,66626.0,66625.0,0.00919939]
[1718665909055,2.31017182,66626.0,66625.0,0.00919939]
[1718665909260,2.28717182,66626.0,66625.0,0.00919939]
[1718665909665,2.31317182,66626.0,66625.0,0.00919939]
[1718665910039,2.46588438,66626.0,66625.0,0.00919939]
[1718665910250,2.49869865,66626.0,66625.0,0.00919939]
[1718665910452,2.51269865,66626.0,66625.0,0.00919939]
[1718665911829,1.75962009,66626.0,66625.0,0.00919939]
[1718665912040,1.71480582,66626.0,66625.0,0.00919939]
[1718665912212,2.05980309,66626.0,66625.0,0.00919939]
[1718665912350,1.98698882,66626.0,66625.0,0.00919939]
[1718665912797,2.01498882,66626.0,66625.0,0.00919939]
[1718665912999,2.31517182,66626.0,66625.0,0.00919939]
[1718665913200,2.00098882,66626.0,66625.0,0.00919939]
[1718665914021,2.15370138,66626.0,66625.0,0.00919939]
[1718665914239,2.18462215,66626.0,66625.0,0.00919939]
[1718665914450,2.48480515,66626.0,66625.0,0.00919939]
[1718665914680,2.18462215,66626.0,66625.0,0.00919939]
[1718665915238,2.04590959,66626.0,66625.0,0.00919939]
[1718665915863,2.05990959,66626.0,66625.0,0.00919939]
[1718665916381,1.96309672,66626.0,66625.0,0.00919939]
[1718665916583,2.01392921,66626.0,66625.0,0.00919939]
[1718665918014,2.01392921,66626.0,66625.0,0.15479939]
[1718665919957,2.07846797,66626.0,66625.0,0.15479939]
[1718665920767,2.01392921,66626.0,66625.0,0.15479939]
[1718665921602,2.08115061,66626.0,66625.0,0.15479939]
[1718665922711,2.08115061,66626.0,66625.0,0.07559939]
[1718665923861,2.01392921,66626.0,66625.0,0.07559939]
[1718665924261,2.08115061,66626.0,66625.0,0.07559939]
[1718665924431,2.23386317,66626.0,66625.0,0.07559939]
[1718665924997,2.31785011,66626.0,66625.0,0.07559939]
[1718665925191,2.3413317,66626.0,66625.0,0.07559939]
[1718665925999,2.6415147,66626.0,66625.0,0.00919939]
[1718665926203,2.3413317,66626.0,66625.0,0.00919939]
[1718665926382,3.5360243,66626.0,66625.0,0.00919939]
[1718665926753,4.13173358,66626.0,66625.0,0.00919939]
[1718665927105,4.43191658,66626.0,66625.0,0.00919939]
[1718665927289,4.13173358,66626.0,66625.0,0.00919939]
[1718665927525,4.20323358,66626.0,66625.0,0.00919939]
[1718665927688,4.18923358,66626.0,66625.0,0.00919939]
[1718665928081,4.20323358,66626.0,66625.0,0.00919939]
[1718665928289,4.50341658,66626.0,66625.0,0.00919939]
[1718665928703,4.53032144,66626.0,66625.0,0.00919939]
[1718665929116,4.59692144,66626.0,66625.0,0.00919939]
[1718665929331,4.59340122,66626.0,66625.0,0.00919939]
[1718665929530,4.57940122,66626.0,66625.0,0.00919939]
[1718665929742,4.57940122,66626.0,66614.0,0.149385]
[1718665929743,1.351044,66615.0,66614.0,0.149385]
[1718665929946,2.20291335,66615.0,66614.0,0.04396151]
[1718665930162,5.20444594,66615.0,66614.0,0.03496151]
[1718665930369,5.17503622,66615.0,66614.0,0.03496151]
[1718665930620,4.11052902,66615.0,66614.0,0.03496151]
[1718665930892,4.05820256,66615.0,66614.0,0.03496151]
[1718665931317,4.15820256,66615.0,66614.0,0.03496151]
[1718665931727,4.17220256,66615.0,66614.0,0.03496151]
[1718665931925,4.17220256,66615.0,66614.0,0.02579339]
[1718665932437,0.150134,66607.0,66602.0,0.0615]
[1718665932637,1.43549305,66607.0,66602.0,0.0615]
[1718665932853,2.03576105,66607.0,66606.0,0.03074074]
[1718665933043,2.33647535,66607.0,66606.0,0.009405]
[1718665933246,2.38139375,66607.0,66606.0,0.009405]
[1718665933449,2.26497535,66607.0,66606.0,0.009405]
[1718665933647,2.30989871,66607.0,66606.0,0.009405]
[1718665934048,2.26497535,66607.0,66606.0,0.009405]
[1718665934261,2.30989508,66607.0,66606.0,0.009405]
[1718665934461,2.31989508,66607.0,66606.0,0.009405]
[1718665935641,2.47260764,66607.0,66606.0,0.009405]
[1718665937915,2.42768791,66607.0,66606.0,0.009405]
[1718665938758,2.77795591,66607.0,66606.0,0.009405]
[1718665939164,2.77386823,66607.0,66606.0,0.009405]
[1718665939410,2.78813722,66607.0,66606.0,0.009405]
[1718665939751,2.83305695,66607.0,66606.0,0.009405]
[1718665940157,2.78813722,66607.0,66606.0,0.009405]
[1718665940562,2.48786922,66607.0,66606.0,0.009405]
[1718665942706,2.85473722,66607.0,66606.0,0.009405]
[1718665942911,2.9654509,66607.0,66606.0,0.009405]
[1718665943118,2.9654509,66607.0,66606.0,0.008005]
[1718665943508,3.51116018,66607.0,66606.0,0.008005]
[1718665943921,3.50616018,66607.0,66606.0,0.008005]
[1718665944082,3.20084762,66607.0,66606.0,0.008005]
[1718665944282,1.06972641,66607.0,66606.0,0.153805]
[1718665944502,0.62876902,66607.0,66606.0,0.153805]
[1718665944712,1.56092312,66607.0,66606.0,0.173805]
[1718665945543,0.78531631,66607.0,66606.0,0.173805]
[1718665945739,0.72612759,66607.0,66606.0,0.173805]
[1718665946032,0.72612759,66607.0,66606.0,0.19518989]
[1718665946246,0.62612759,66607.0,66606.0,0.19518989]
[1718665946397,0.2338463,66607.0,66606.0,0.64559889]
[1718665946597,0.2334,66607.0,66606.0,0.19518989]
[1718665946824,0.2394,66607.0,66606.0,0.19518989]
[1718665947028,0.2474,66607.0,66606.0,0.19518989]
[1718665947404,0.2384,66607.0,66606.0,0.19518989]
[1718665947619,0.3384,66607.0,66606.0,0.19518989]
[1718665947823,0.3384,66607.0,66606.0,0.19718989]
[1718665948847,0.3334,66607.0,66606.0,0.19718989]
[1718665949108,0.483534,66607.0,66606.0,0.19718989]
[1718665949542,1.384338,66607.0,66606.0,0.17718989]
[1718665949744,1.384338,66607.0,66606.0,0.155805]
[1718665949745,1.75602969,66607.0,66606.0,0.155805]
[1718665951085,1.75602969,66607.0,66606.0,0.153805]
[1718665951491,1.75602969,66607.0,66606.0,0.173805]
[1718665951695,1.75602969,66607.0,66606.0,0.153805]
[1718665952512,1.75602969,66607.0,66606.0,0.154805]
[1718665952935,1.75602969,66607.0,66606.0,0.153805]
[1718665953348,1.76502969,66607.0,66606.0,0.153805]
[1718665953560,1.81027203,66607.0,66606.0,0.153805]
[1718665953938,1.81927203,66607.0,66606.0,0.153805]
[1718665954138,1.76502969,66607.0,66606.0,0.153805]
[1718665955313,1.75602969,66607.0,66606.0,0.153805]
[1718665955658,1.76702969,66607.0,66606.0,0.173805]
[1718665956662,1.70700165,66607.0,66606.0,0.173805]
[1718665956868,1.76684992,66607.0,66606.0,0.173805]
[1718665957072,1.46658192,66607.0,66606.0,0.173805]
[1718665957310,1.10646565,66607.0,66606.0,0.173805]
[1718665957506,1.10646565,66607.0,66606.0,0.323941]
[1718665957507,0.7160649,66607.0,66606.0,0.323941]
[1718665957711,0.7050649,66607.0,66606.0,0.173805]
[1718665958013,0.7050649,66607.0,66606.0,0.19517802]
[1718665958014,0.79519765,66607.0,66606.0,0.19517802]
[1718665958217,0.81619765,66607.0,66606.0,0.19517802]
[1718665958423,0.80619765,66607.0,66606.0,0.19517802]
[1718665958950,0.86880354,66607.0,66606.0,0.19517802]
[1718665959156,0.86680354,66607.0,66606.0,0.19517802]
[1718665959372,0.85579327,66607.0,66606.0,0.19517802]
[1718665959564,0.64505338,66607.0,66606.0,0.19517802]
[1718665959774,0.79518738,66607.0,66606.0,0.19717802]
[1718665960091,0.85680282,66607.0,66606.0,0.19717802]
[1718665960534,1.15707082,66607.0,66606.0,0.19717802]
[1718665962919,1.15707082,66607.0,66606.0,0.173805]
[1718665964277,1.45733882,66607.0,66606.0,0.173805]
[1718665964491,1.45733882,66607.0,66606.0,0.174805]
[1718665964690,1.15707082,66607.0,66606.0,0.174805]
[1718665966018,1.15707082,66607.0,66606.0,0.19617802]
[1718665967389,1.09545538,66607.0,66606.0,0.19617802]
[1718665967593,1.15596092,66607.0,66606.0,0.19617802]
[1718665968010,1.15596092,66607.0,66606.0,0.174805]
[1718665969357,1.15596092,66607.0,66606.0,0.173805]
[1718665969559,1.15896092,66607.0,66606.0,0.19517485]
[1718665969769,1.16196092,66607.0,66606.0,0.19517485]
[1718665970209,1.16196092,66607.0,66606.0,0.173805]
[1718665970674,0.85869292,66607.0,66606.0,0.173805]
[1718665970889,0.85869292,66607.0,66606.0,0.19517485]
[1718665971253,0.85569292,66607.0,66606.0,0.19517485]
[1718665971497,0.85969292,66607.0,66606.0,0.19517485]
[1718665972342,0.86069292,66607.0,66606.0,0.19517485]
[1718665972545,0.85569292,66607.0,66606.0,0.19517485]
[1718665973048,1.15896092,66607.0,66606.0,0.19517485]
[1718665973791,1.15896092,66607.0,66606.0,0.173805]
[1718665974840,1.15596092,66607.0,66606.0,0.173805]
[1718665975297,1.45722892,66607.0,66606.0,0.173805]
[1718665977183,1.39672338,66607.0,66606.0,0.173805]
[1718665977382,1.45743317,66607.0,66606.0,0.153805]
[1718665977618,1.75770117,66607.0,66606.0,0.173805]
[1718665978349,1.45726967,66607.0,66606.0,0.173805]
[1718665978753,0.60659967,66607.0,66606.0,0.543805]
[1718665978957,0.2344,66607.0,66606.0,0.74008385]
[1718665979168,0.2344,66607.0,66606.0,0.43981085]
[1718665979608,0.2344,66607.0,66606.0,0.44981085]
[1718665979798,0.2334,66607.0,66606.0,0.44981085]
[1718665980134,0.2334,66607.0,66606.0,0.75008385]
[1718665980338,0.2334,66607.0,66606.0,1.05235685]
[1718665981558,0.2334,66607.0,66606.0,1.15945685]
[1718665982291,0.2334,66607.0,66606.0,1.61245873]
[1718665983037,0.2334,66607.0,66606.0,1.71445873]
[1718665983238,0.0004463,66620.0,66619.0,0.470321]
[1718665983453,0.00086,66626.0,66625.0,0.170093]
[1718665983647,0.32035094,66626.0,66625.0,0.02]
[1718665983871,0.77146275,66626.0,66625.0,0.04133693]
[1718665984129,0.77146275,66626.0,66625.0,0.18093693]
[1718665984361,0.71242413,66626.0,66625.0,0.18093693]
[1718665984719,0.77108956,66626.0,66625.0,0.18093693]
[1718665984925,0.77508956,66626.0,66625.0,0.02133693]
[1718665985121,1.46688113,66626.0,66625.0,0.04133693]
[1718665985327,0.150096,66624.0,66623.0,0.02]
[1718665985530,0.150096,66624.0,66620.0,0.02]
[1718665985531,0.4706778,66624.0,66620.0,0.02]
[1718665985736,0.750547,66618.0,66617.0,0.0758]
[1718665985944,0.750547,66618.0,66614.0,0.0784]
[1718665985945,0.4702315,66618.0,66614.0,0.0784]
[1718665986192,0.450348,66615.0,66614.0,0.0984]
[1718665986401,1.06214413,66615.0,66614.0,0.0984]
[1718665987121,0.76191213,66615.0,66614.0,0.0984]
[1718665987558,0.76291213,66615.0,66614.0,0.1034]
[1718665987979,0.76291213,66615.0,66614.0,0.1074]
[1718665987980,0.76391213,66615.0,66614.0,0.1074]
[1718665989645,0.46368013,66615.0,66614.0,0.1074]
[1718665989853,0.46368013,66615.0,66614.0,0.12874669]
[1718665992362,0.76391213,66615.0,66614.0,0.12874669]
[1718665997112,0.46368013,66615.0,66614.0,0.12874669]
[1718665997258,0.31356413,66615.0,66614.0,0.12874669]
[1718665998469,0.31356413,66615.0,66614.0,1.08093869]
[1718665998679,0.002,66615.0,66614.0,0.78070169]
[1718665999665,0.002,66615.0,66614.0,0.77760169]
[1718666000445,0.00285,66615.0,66614.0,0.77760169]
[1718666001207,0.00285,66615.0,66614.0,1.07783869]
[1718666001343,0.00285,66615.0,66614.0,1.15213869]
[1718666002655,0.00285,66615.0,66614.0,1.130792]
[1718666002859,0.00285,66615.0,66614.0,1.45236281]
[1718666003060,0.00285,66615.0,66614.0,1.60509169]
[1718666009466,0.00285,66615.0,66614.0,2.74732869]
[1718666009728,0.00285,66615.0,66614.0,2.00732869]
[1718666009944,0.00285,66615.0,66614.0,2.13194237]
[1718666010140,0.00285,66615.0,66614.0,2.28984237]
[1718666010553,0.00285,66615.0,66614.0,3.00984237]
[1718666010750,0.00185,66615.0,66614.0,3.59484237]
[1718666011099,0.00285,66615.0,66614.0,3.59884237]
[1718666011558,0.00185,66615.0,66614.0,3.59484237]
[1718666012033,0.00285,66615.0,66614.0,3.60884237]
[1718666012601,0.00185,66615.0,66614.0,3.95507937]
[1718666012802,0.00185,66615.0,66614.0,3.95207937]
[1718666012987,0.00285,66615.0,66614.0,3.66584237]
[1718666014874,0.00086,66635.0,66625.0,1.172654]
[1718666015074,0.00086,66635.0,66625.0,1.67818288]
[1718666015300,0.00086,66635.0,66625.0,1.69948533]
[1718666016743,0.30186,66626.0,66625.0,1.71048533]
[1718666016938,0.30286,66626.0,66625.0,1.62248533]
[1718666018120,0.30286,66626.0,66625.0,1.62448533]
[1718666019530,0.30286,66626.0,66625.0,1.51728533]
[1718666020393,0.30286,66626.0,66625.0,1.51528533]
[1718666027824,0.30286,66626.0,66625.0,1.81547233]
[1718666029202,0.30286,66626.0,66625.0,1.51528533]
[1718666031174,0.30286,66626.0,66625.0,1.21509833]
[1718666039215,0.30286,66626.0,66625.0,1.33879622]
[1718666041435,0.05383877,66626.0,66625.0,1.33879622]
[1718666041933,0.05383877,66626.0,66625.0,1.74098322]
[1718666043177,0.05383877,66626.0,66625.0,2.51098322]
[1718666043378,0.05383877,66626.0,66625.0,2.66888322]
[1718666043583,0.05383877,66626.0,66625.0,2.70888322]
[1718666043789,0.05383877,66626.0,66625.0,1.94365803]
[1718666044244,0.05383877,66626.0,66625.0,1.89888322]
[1718666044417,0.05283877,66626.0,66625.0,1.88788322]
[1718666044852,0.05383877,66626.0,66625.0,1.89988322]
[1718666045232,0.05383877,66626.0,66625.0,2.45976095]
[1718666045431,0.05383877,66626.0,66625.0,2.59994791]
[1718666045699,0.05383877,66626.0,66625.0,3.29594791]
[1718666045700,0.05283877,66626.0,66625.0,3.29594791]
[1718666045852,0.05283877,66626.0,66625.0,2.56873568]
[1718666046439,0.05283877,66626.0,66625.0,2.658079]
[1718666046719,0.05283877,66626.0,66625.0,2.67240656]
[1718666046910,0.05283877,66626.0,66625.0,3.38240656]
[1718666047117,0.05283877,66626.0,66625.0,3.42279025]
[1718666047349,0.05283877,66626.0,66625.0,3.51245008]
[1718666047520,0.05183877,66626.0,66625.0,3.48645008]
[1718666047934,0.05183877,66626.0,66625.0,3.50045008]
[1718666048061,0.00086,66635.0,66634.0,0.02]
[1718666048267,0.30086,66635.0,66634.0,1.85652226]
[1718666048466,0.30086,66635.0,66634.0,1.80324255]
[1718666049292,0.30086,66635.0,66634.0,2.10338955]
[1718666049719,0.30086,66635.0,66634.0,2.04622656]
[1718666049894,0.30086,66635.0,66634.0,2.06022656]
[1718666050099,0.30086,66635.0,66634.0,2.01538955]
[1718666050325,0.30086,66635.0,66634.0,1.68267513]
[1718666050530,0.30086,66635.0,66634.0,1.36039756]
[1718666050940,0.30086,66635.0,66634.0,1.44579756]
[1718666051171,0.30086,66635.0,66634.0,1.45779756]
[1718666051572,0.30086,66635.0,66634.0,1.44579756]
[1718666052203,0.30086,66635.0,66634.0,1.45979756]
[1718666057234,0.30086,66635.0,66634.0,1.50464726]
[1718666057811,0.30086,66635.0,66634.0,1.45979756]
[1718666058006,0.30086,66635.0,66634.0,1.56179756]
[1718666058582,0.30086,66635.0,66634.0,1.60664726]
[1718666058992,0.30086,66635.0,66634.0,1.56179756]
[1718666059196,0.30086,66635.0,66634.0,1.60664726]
[1718666059406,0.30086,66635.0,66634.0,1.56179756]
[1718666059609,0.30086,66635.0,66634.0,1.60664726]
[1718666060070,0.30086,66635.0,66634.0,1.45979756]
[1718666066426,0.30086,66635.0,66634.0,1.56179756]
[1718666067826,0.30086,66635.0,66634.0,1.72878582]
[1718666068146,0.30086,66635.0,66634.0,1.56179756]
[1718666068345,0.30086,66635.0,66634.0,1.68297438]
[1718666068925,0.30086,66635.0,66634.0,1.68281467]
[1718666069166,0.30086,66635.0,66634.0,1.56179756]
[1718666069580,0.04833496,66635.0,66634.0,1.56179756]
[1718666069802,0.04833496,66635.0,66634.0,1.6828141]
[1718666070894,0.04833496,66635.0,66634.0,1.56179756]
[1718666071765,0.04833496,66635.0,66634.0,1.68273667]
[1718666073429,0.04833496,66635.0,66634.0,1.58073667]
[1718666073807,0.04833496,66635.0,66634.0,1.68273667]
[1718666074355,0.04833496,66635.0,66634.0,1.58073667]
[1718666074563,0.04833496,66635.0,66634.0,1.12628967]
[1718666074768,0.04833496,66635.0,66634.0,1.19768967]
[1718666074980,0.04833496,66635.0,66634.0,1.49783667]
[1718666078234,0.04833496,66635.0,66634.0,1.49919776]
[1718666079434,0.04833496,66635.0,66634.0,1.48919776]
[1718666079909,0.04833496,66635.0,66634.0,1.49919776]
[1718666080278,0.04833496,66635.0,66634.0,1.48919776]
[1718666080713,0.04833496,66635.0,66634.0,1.18905076]
[1718666080889,0.04833496,66635.0,66634.0,0.06925468]
[1718666080890,0.34300596,66635.0,66634.0,0.06925468]
[1718666081147,0.9546338,66635.0,66634.0,0.04925468]
[1718666081378,1.61897722,66635.0,66634.0,0.04925468]
[1718666081586,1.61897722,66635.0,66634.0,0.028]
[1718666082131,1.61897722,66635.0,66634.0,0.014]
[1718666082536,1.31883522,66635.0,66634.0,0.028]
[1718666082721,1.31883522,66635.0,66634.0,0.034]
[1718666083163,1.31883522,66635.0,66634.0,0.048]
[1718666083573,0.450226,66633.0,66632.0,0.02]
[1718666083905,0.90871184,66633.0,66632.0,0.043]
[1718666085796,0.90871184,66633.0,66632.0,0.1144]
[1718666086591,0.90871184,66633.0,66632.0,0.1284]
[1718666087041,0.90871184,66633.0,66632.0,0.1424]
[1718666087640,0.90871184,66633.0,66632.0,0.071]
[1718666087843,1.20886284,66633.0,66632.0,0.071]
[1718666088046,1.20886284,66633.0,66632.0,0.051]
[1718666088221,1.20886284,66633.0,66632.0,0.071]
[1718666090432,1.50901384,66633.0,66632.0,0.028]
[1718666090860,1.97290607,66633.0,66632.0,0.028]
[1718666091385,2.20585238,66633.0,66632.0,0.028]
[1718666091626,2.39578329,66633.0,66632.0,0.028]
[1718666091831,2.49197557,66633.0,66632.0,0.028]
[1718666092042,1.194123,66627.0,66626.0,0.000935]
[1718666092243,1.74106857,66627.0,66626.0,0.000935]
[1718666092521,2.04124657,66627.0,66626.0,0.000935]
[1718666093972,1.96984657,66627.0,66626.0,0.000935]
[1718666094935,1.96984657,66627.0,66626.0,0.001935]
[1718666095140,1.96984657,66627.0,66626.0,0.002935]
[1718666095141,1.97284657,66627.0,66626.0,0.002935]
[1718666101348,2.04424657,66627.0,66626.0,0.002935]
[1718666103134,2.06385264,66627.0,66626.0,0.002935]
[1718666106129,2.36929408,66627.0,66626.0,0.002935]
[1718666106346,2.66675952,66627.0,66626.0,0.002935]
[1718666106558,2.66675952,66627.0,66615.0,0.000935]
[1718666106559,1.491026,66616.0,66615.0,0.000935]
[1718666106760,2.03752527,66616.0,66615.0,0.000935]
[1718666107179,2.03797157,66616.0,66615.0,0.000935]
[1718666107386,2.30306172,66616.0,66615.0,0.000935]
[1718666107613,2.73328972,66616.0,66615.0,0.000935]
[1718666107814,2.88328972,66616.0,66615.0,0.000935]